fUST/lending_fUST_20250815
["ID","MTS","AMOUNT","RATE_DAILY","PERIOD"]
[379226089,1755197451270,-326.0,0.00019487,2]
[379226091,1755197451279,-1761.0,0.00019487,2]
[379226093,1755197451290,-326.0,0.00019487,2]
[379226095,1755197451299,-1761.0,0.00019487,2]
[379226097,1755197451308,-326.0,0.00019487,2]
[379226099,1755197451317,-1761.0,0.00019487,2]
[379226101,1755197451327,-326.0,0.00019487,2]
[379226103,1755197451336,-622.43105529,0.00019487,2]
[379226105,1755197451346,-326.0,0.00019487,2]
[379226107,1755197451355,-1761.0,0.00019487,2]
[379226109,1755197451364,-326.0,0.00019487,2]
[379226111,1755197451373,-1761.0,0.00019487,2]
[379226113,1755197451382,-326.0,0.00019487,2]
[379226115,1755197451391,-1761.0,0.00019487,2]
[379226117,1755197451401,-326.0,0.00019487,2]
[379226119,1755197451410,-1761.0,0.00019487,2]
[379226121,1755197451419,-326.0,0.00019487,2]
[379226123,1755197451428,-1071.58000537,0.00019487,2]
[379226125,1755197451437,-326.0,0.00019487,2]
[379226127,1755197451448,-1761.0,0.00019487,2]
[379226129,1755197451457,-326.0,0.00019487,2]
[379226131,1755197451466,-1761.0,0.00019487,2]
[379226133,1755197451475,-152.29424896,0.00019487,2]
[379226135,1755197451484,-1761.0,0.00019487,2]
[379226137,1755197451494,-326.0,0.00019487,2]
[379226139,1755197451503,-808.72553782,0.00019487,2]
[379226141,1755197451512,-326.0,0.00019487,2]
[379226143,1755197451521,-326.0,0.00019487,2]
[379226145,1755197451530,-322.0,0.00019487,2]
[379226147,1755197451539,-326.0,0.00019487,2]
[379226149,1755197451548,-271.03809434,0.00019487,2]
[379226151,1755197451558,-326.0,0.00019487,2]
[379226153,1755197451567,-326.0,0.00019487,2]
[379226154,1755197451577,-326.0,0.00019487,2]
[379226156,1755197451587,-322.0,0.00019487,2]
[379226158,1755197451597,-325.14889795,0.00019487,2]
[379226160,1755197451606,-326.0,0.00019487,2]
[379226162,1755197451615,-326.0,0.00019487,2]
[379226164,1755197451625,-326.0,0.00019487,2]
[379226166,1755197451635,-326.0,0.00019487,2]
[379226168,1755197451644,-326.0,0.00019487,2]
[379226170,1755197451653,-326.0,0.00019487,2]
[379226172,1755197451662,-326.0,0.00019487,2]
[379226174,1755197451671,-326.0,0.00019487,2]
[379226176,1755197451681,-326.0,0.00019487,2]
[379226178,1755197451690,-326.65964739,0.00019487,2]
[379226180,1755197451699,-1052.99210005,0.00019508,2]
[379226182,1755197451709,-460.0,0.00019512,2]
[379226184,1755197451718,-460.0,0.00019512,2]
[379226186,1755197451727,-932.62,0.00019512,2]
[379226188,1755197451736,-758.98,0.00019512,2]
[379226190,1755197451745,-460.0,0.0001952,2]
[379226192,1755197451754,-789.03,0.0001952,2]
[379226193,1755197451763,-1278.43,0.0001952,2]
[379226195,1755197451772,-460.0,0.0001952,2]
[379226197,1755197451781,-1049.16,0.0001952,2]
[379226199,1755197451790,-526.84,0.0001952,2]
[379226201,1755197451799,-460.0,0.0001952,2]
[379226203,1755197451808,-1125.17,0.0001952,2]
[379226205,1755197451818,-467.52,0.0001952,2]
[379226207,1755197451827,-617.46,0.0001952,2]
[379226209,1755197451836,-1084.56,0.0001952,2]
[379226211,1755197451846,-1448.41,0.00019521,2]
[379226213,1755197451855,-675.65,0.00019521,2]
[379226215,1755197451864,-2962.85,0.00019521,2]
[379226217,1755197451873,-822.62,0.00019521,2]
[379226219,1755197451883,-460.0,0.00019521,2]
[379226221,1755197451892,-531.82,0.00019521,2]
[379226223,1755197451901,-1528.78,0.00019521,2]
[379226225,1755197451911,-460.0,0.00019521,2]
[379226227,1755197451920,-460.0,0.00019522,2]
[379226229,1755197451930,-460.0,0.00019529,2]
[379226231,1755197451939,-5569.68576292,0.00019547,2]
[379226233,1755197451949,-2000.0,0.00019616,2]
[379226235,1755197451958,-2000.0,0.00019616,2]
[379226237,1755197451967,-800.0,0.00019695,2]
[379226239,1755197451976,-1500.0,0.00019712,2]
[379226241,1755197451986,-1378.0,0.0001972,2]
[379226243,1755197451995,-276.25127351,0.00019726,2]
[379226245,1755197452005,-250.0,0.00019726,2]
[379226247,1755197452015,-800.0,0.0001973,2]
[379226249,1755197452025,-431.6946653,0.00019769,2]
[379226251,1755197452034,-431.6946653,0.00019769,2]
[379226253,1755197452044,-431.6946653,0.00019769,2]
[379226255,1755197452053,-431.6946653,0.00019769,2]
[379226256,1755197452062,-460.0,0.00019786,2]
[379226258,1755197452072,-460.0,0.00019786,2]
[379226260,1755197452081,-932.62,0.00019786,2]
[379226262,1755197452091,-758.98,0.00019786,2]
[379226264,1755197452100,-460.0,0.00019794,2]
[379226266,1755197452109,-789.03,0.00019794,2]
[379226268,1755197452119,-1278.43,0.00019794,2]
[379226270,1755197452128,-460.0,0.00019794,2]
[379226272,1755197452138,-1049.16,0.00019794,2]
[379226274,1755197452147,-526.84,0.00019794,2]
[379226276,1755197452157,-372.81757719,0.00019794,2]
[379226278,1755197452166,-1125.17,0.00019794,2]
[379226280,1755197452177,-467.52,0.00019794,2]
[379226282,1755197452186,-617.46,0.00019794,2]
[379226284,1755197452197,-1084.56,0.00019794,2]
[379226286,1755197452207,-1448.41,0.00019795,2]
[379226288,1755197452216,-675.65,0.00019795,2]
[379226290,1755197452226,-2962.85,0.00019795,2]
[379226292,1755197452237,-822.62,0.00019795,2]
[379226294,1755197452246,-460.0,0.00019795,2]
[379226296,1755197452256,-531.82,0.00019795,2]
[379226298,1755197452266,-1528.78,0.00019795,2]
[379226300,1755197452275,-460.0,0.00019795,2]
[379226302,1755197452285,-460.0,0.00019796,2]
[379226303,1755197452294,-155.0,0.000198,2]
[379226305,1755197452303,-155.0,0.000198,2]
[379226307,1755197452313,-460.0,0.00019803,2]
[379226309,1755197452323,-800.0,0.00019809,2]
[379226311,1755197452332,-1510.46604274,0.00019821,2]
[379226313,1755197452341,-537.26427,0.00019863,2]
[379226315,1755197452351,-800.0,0.00019865,2]
[379226317,1755197452360,-421.97630763,0.00019868,2]
[379226319,1755197452370,-260.0,0.00019888,2]
[379226321,1755197452380,-6984.28083207,0.000199,2]
[379226323,1755197452389,-500.0,0.00019951,2]
[379226325,1755197452398,-10000.0,0.00019953,2]
[379226327,1755197452407,-800.0,0.00019957,2]
[379226329,1755197452416,-160.0,0.00019979,4]
[379226331,1755197452426,-200.0,0.0001998,2]
[379226333,1755197452436,-800.0,0.00019983,2]
[379226335,1755197452445,-800.0,0.00019985,2]
[379226337,1755197452455,-555.94818728,0.00019994,2]
[379226356,1755197452639,-326.0,0.00019478,2]
[379226358,1755197452649,-127.61884439,0.00019478,2]
[379226373,1755197452785,-1672.76844435,0.00019478,2]
[379226375,1755197452794,-822.05181272,0.00019994,2]
[379226376,1755197452804,-10797.0,0.0002,7]
[379226378,1755197452813,-562.0,0.0002,2]
[379226380,1755197452822,-5012.07198146,0.0002,2]
[379226382,1755197452831,-4470.69367348,0.0002,7]
[379226384,1755197452841,-4785.50917716,0.0002,2]
[379226386,1755197452850,-674.09,0.0002,3]
[379226388,1755197452859,-500.0,0.0002,2]
[379226390,1755197452868,-500.0,0.0002,3]
[379226392,1755197452878,-160.0,0.0002,3]
[379226394,1755197452887,-15231.00777489,0.0002,2]
[379226396,1755197452896,-200.0,0.0002,2]
[379226398,1755197452905,-301.30969602,0.0002,2]
[379226400,1755197452914,-300.0,0.0002,2]
[379226402,1755197452924,-160.0,0.0002,7]
[379226404,1755197452934,-160.0,0.0002,3]
[379226406,1755197452943,-528.19044044,0.0002,7]
[379226408,1755197452952,-200.51307488,0.0002,2]
[379226410,1755197452961,-4000.0,0.0002,4]
[379226412,1755197452971,-215.59581046,0.0002,7]
[379226414,1755197452980,-894.69511004,0.00020021,2]
[379226416,1755197452989,-1000.0,0.00020021,2]
[379226417,1755197452999,-1000.0,0.00020021,2]
[379226419,1755197453009,-500.0,0.00020021,2]
[379226421,1755197453018,-662.05088607,0.00020021,2]
[379226423,1755197453028,-501.03889803,0.00020021,2]
[379226425,1755197453038,-500.0,0.00020021,2]
[379226427,1755197453048,-500.0,0.00020021,2]
[379226429,1755197453057,-500.0,0.00020021,2]
[379226431,1755197453067,-1000.0,0.00020021,2]
[379226433,1755197453077,-500.0,0.00020021,2]
[379226435,1755197453087,-496.97343253,0.00020021,2]
[379226437,1755197453096,-500.83920195,0.00020021,2]
[379226439,1755197453106,-1000.0,0.00020021,2]
[379226441,1755197453117,-500.49707371,0.00020021,2]
[379226443,1755197453127,-1000.0,0.00020021,2]
[379226445,1755197453137,-1000.0,0.00020021,2]
[379226447,1755197453147,-460.0,0.0002006,2]
[379226449,1755197453157,-460.0,0.0002006,2]
[379226451,1755197453167,-932.62,0.0002006,2]
[379226453,1755197453177,-758.98,0.0002006,2]
[379226455,1755197453187,-460.0,0.00020068,2]
[379226457,1755197453196,-789.03,0.00020068,2]
[379226459,1755197453206,-1278.43,0.00020068,2]
[379226461,1755197453215,-460.0,0.00020068,2]
[379226463,1755197453225,-1049.16,0.00020068,2]
[379226464,1755197453235,-526.84,0.00020068,2]
[379226466,1755197453247,-1125.17,0.00020068,2]
[379226468,1755197453257,-467.52,0.00020068,2]
[379226470,1755197453266,-617.46,0.00020068,2]
[379226472,1755197453276,-1084.56,0.00020068,2]
[379226474,1755197453285,-675.65,0.00020069,2]
[379226476,1755197453294,-2962.85,0.00020069,2]
[379226478,1755197453304,-822.62,0.00020069,2]
[379226480,1755197453313,-460.0,0.00020069,2]
[379226482,1755197453323,-531.82,0.00020069,2]
[379226484,1755197453333,-1528.78,0.00020069,2]
[379226486,1755197453343,-460.0,0.00020069,2]
[379226488,1755197453352,-460.0,0.0002007,2]
[379226490,1755197453363,-460.0,0.00020077,2]
[379226492,1755197453373,-972.0,0.00020101,2]
[379226494,1755197453385,-636.0,0.00020101,2]
[379226496,1755197453394,-2151.0,0.00020101,2]
[379226498,1755197453404,-1822.97374962,0.00020164,2]
[379226500,1755197453413,-2500.0,0.00020164,2]
[379226502,1755197453423,-451.339764,0.00020187,2]
[379226504,1755197453432,-1378.0,0.00020268,2]
[379226506,1755197453442,-350.0,0.00020274,2]
[379226508,1755197453451,-150.0,0.00020287,2]
[379226510,1755197453460,-150.0,0.00020287,2]
[379226512,1755197453470,-150.0,0.00020287,2]
[379226514,1755197453479,-150.0,0.00020287,2]
[379226516,1755197453488,-200.0,0.00020309,20]
[379226518,1755197453498,-200.0,0.00020309,20]
[379226520,1755197453507,-200.0,0.00020309,20]
[379226522,1755197453516,-200.0,0.00020309,20]
[379226524,1755197453526,-200.0,0.00020309,20]
[379226526,1755197453536,-200.0,0.00020309,20]
[379226528,1755197453545,-200.0,0.00020309,20]
[379226529,1755197453554,-200.0,0.00020309,20]
[379226531,1755197453563,-200.0,0.00020309,20]
[379226533,1755197453574,-200.0,0.00020309,20]
[379226535,1755197453585,-350.0,0.00020309,20]
[379226537,1755197453597,-460.0,0.00020334,2]
[379226539,1755197453607,-151.16115148,0.00020334,2]
[379226541,1755197453617,-932.62,0.00020334,2]
[379226543,1755197453626,-758.98,0.00020334,2]
[379226545,1755197453635,-460.0,0.00020342,2]
[379226547,1755197453645,-789.03,0.00020342,2]
[379226549,1755197453655,-1278.43,0.00020342,2]
[379226551,1755197453665,-460.0,0.00020342,2]
[379226553,1755197453675,-1049.16,0.00020342,2]
[379226555,1755197453684,-526.84,0.00020342,2]
[379226557,1755197453693,-1125.17,0.00020342,2]
[379226559,1755197453702,-467.52,0.00020342,2]
[379226561,1755197453712,-617.46,0.00020342,2]
[379226562,1755197453721,-1084.56,0.00020342,2]
[379226563,1755197453730,-675.65,0.00020343,2]
[379226564,1755197453739,-2962.85,0.00020343,2]
[379226565,1755197453749,-822.62,0.00020343,2]
[379226566,1755197453759,-276.17459961,0.00020343,2]
[379226567,1755197453769,-531.82,0.00020343,2]
[379226568,1755197453778,-1528.78,0.00020343,2]
[379226569,1755197453790,-460.0,0.00020343,2]
[379226570,1755197453799,-460.0,0.00020344,2]
[379226571,1755197453809,-460.0,0.00020351,2]
[379226572,1755197453818,-1050.70999984,0.00020422,2]
[379226806,1755197477008,335.39,0.00018423,30]
[379226808,1755197477425,670.79,0.00020098,30]
[379226809,1755197478426,1006.18,0.00021773,30]
[379226810,1755197492994,1998.15067529,0.00016406,2]
[379226812,1755197601212,528.19044044,0.0003,120]
[379226814,1755197916308,528.19044044,0.0003,120]
[379226819,1755198228679,528.19044044,0.0003,120]
[379226821,1755198423218,406.205787,0.00013699,2]
[379226822,1755198479436,278.24989665,0.00016405,2]
[379226825,1755198542890,528.19044044,0.0003,120]
[379226872,1755198631896,-460.0,0.00016506,2]
[379226874,1755198631907,-460.0,0.00016507,2]
[379226876,1755198631916,-328.28683539,0.00016507,2]
[379226878,1755198631930,-131.71316461,0.00016507,2]
[379226880,1755198631939,-300.0,0.00016606,2]
[379226882,1755198631949,-305.0,0.00016606,2]
[379226884,1755198631958,-151.0,0.00016607,2]
[379226886,1755198631970,-1821.267734,0.00016607,2]
[379226889,1755198631979,-1821.267734,0.00016607,2]
[379226891,1755198631989,-151.0,0.00016607,2]
[379226893,1755198632004,-246.834689,0.00016607,2]
[379226895,1755198632015,-530.49000296,0.00016607,2]
[379227336,1755198637692,-736.83323204,0.00016607,2]
[379227337,1755198637701,-13.03060786,0.00016607,2]
[379227360,1755198639786,-1254.29262714,0.00016607,2]
[379227361,1755198639796,-1267.323235,0.00016673,2]
[379227362,1755198639805,-1267.323235,0.00016673,2]
[379227363,1755198639815,-663.85,0.00016705,2]
[379227364,1755198639824,-460.0,0.00016705,2]
[379227365,1755198639834,-479.41,0.00016705,2]
[379227366,1755198639844,-460.0,0.00016705,2]
[379227367,1755198639853,-460.0,0.00016705,2]
[379227368,1755198639863,-460.0,0.00016705,2]
[379227369,1755198639872,-460.0,0.00016705,2]
[379227370,1755198639882,-460.0,0.00016705,2]
[379227371,1755198639891,-460.0,0.00016705,2]
[379227372,1755198639901,-460.0,0.00016705,2]
[379227373,1755198639911,-460.0,0.00016705,2]
[379227375,1755198639922,-460.0,0.00016705,2]
[379227377,1755198639941,-460.0,0.00016705,2]
[379227379,1755198639950,-460.0,0.00016705,2]
[379227381,1755198639959,-151.0,0.00016706,2]
[379227384,1755198639969,-1821.267734,0.00016706,2]
[379227385,1755198639978,-1821.267734,0.00016706,2]
[379227386,1755198639987,-151.0,0.00016706,2]
[379227388,1755198639997,-1854.63380226,0.00016734,2]
[379227390,1755198640006,-460.0,0.00016743,2]
[379227392,1755198640015,-1111.07,0.00016743,2]
[379227394,1755198640024,-460.0,0.00016743,2]
[379227396,1755198640034,-573.29,0.00016743,2]
[379227398,1755198640042,-460.0,0.00016743,2]
[379227400,1755198640051,-460.0,0.00016743,2]
[379227402,1755198640060,-151.0,0.00016772,2]
[379227404,1755198640069,-151.0,0.0001678,2]
[379227406,1755198640078,-460.0,0.0001678,2]
[379227408,1755198640087,-1267.323235,0.00016781,2]
[379227410,1755198640096,-1267.323235,0.00016781,2]
[379227412,1755198640105,-460.0,0.00016781,2]
[379227414,1755198640115,-1821.267734,0.00016782,2]
[379227416,1755198640124,-1821.267734,0.00016782,2]
[379227418,1755198640134,-151.0,0.00016782,2]
[379227420,1755198640143,-200.0,0.00016835,2]
[379227422,1755198640152,-200.0,0.00016835,2]
[379227424,1755198640161,-200.0,0.00016835,2]
[379227426,1755198640171,-200.0,0.00016835,2]
[379227428,1755198640180,-200.0,0.00016835,2]
[379227430,1755198640189,-200.0,0.00016835,2]
[379227432,1755198640198,-500.0,0.00016835,2]
[379227434,1755198640207,-151.0,0.00016876,2]
[379227436,1755198640216,-151.0,0.000169,2]
[379227438,1755198640225,-488.71155435,0.00016978,2]
[379227440,1755198640235,-663.85,0.00016979,2]
[379227442,1755198640244,-460.0,0.00016979,2]
[379227444,1755198640253,-479.41,0.00016979,2]
[379227446,1755198640262,-584.01,0.00016979,2]
[379227448,1755198640276,-460.0,0.00016979,2]
[379227450,1755198640285,-460.0,0.00016979,2]
[379227452,1755198640295,-460.0,0.00016979,2]
[379227454,1755198640304,-460.0,0.00016979,2]
[379227456,1755198640313,-460.0,0.00016979,2]
[379227458,1755198640322,-460.0,0.00016979,2]
[379227460,1755198640331,-460.0,0.00016979,2]
[379227462,1755198640340,-460.0,0.00016979,2]
[379227464,1755198640349,-460.0,0.00016979,2]
[379227466,1755198640359,-460.0,0.00016979,2]
[379227468,1755198640367,-1267.323235,0.0001698,2]
[379227470,1755198640377,-1267.323235,0.0001698,2]
[379227472,1755198640386,-151.0,0.00017,2]
[379227474,1755198640395,-460.0,0.00017017,2]
[379227476,1755198640405,-1111.07,0.00017017,2]
[379227478,1755198640414,-460.0,0.00017017,2]
[379227480,1755198640423,-573.29,0.00017017,2]
[379227482,1755198640433,-460.0,0.00017017,2]
[379227483,1755198640442,-460.0,0.00017017,2]
[379227485,1755198640452,-1821.267734,0.00017046,2]
[379227487,1755198640461,-1821.267734,0.00017046,2]
[379227489,1755198640470,-460.0,0.00017054,2]
[379227491,1755198640479,-151.0,0.00017055,2]
[379227493,1755198640488,-460.0,0.00017055,2]
[379227495,1755198640498,-1267.323235,0.00017101,2]
[379227497,1755198640507,-1267.323235,0.00017101,2]
[379227499,1755198640516,-160.0,0.00017112,2]
[379227501,1755198640526,-160.0,0.00017112,2]
[379227503,1755198640535,-160.0,0.00017112,2]
[379227505,1755198640544,-417.15472785,0.00017112,2]
[379227507,1755198640554,-160.0,0.00017112,2]
[379227509,1755198640563,-215.59581046,0.00017112,2]
[379227511,1755198640572,-160.0,0.00017112,2]
[379227513,1755198640581,-461.9529908,0.00017112,2]
[379227515,1755198640591,-843.37884167,0.00017112,2]
[379227517,1755198640600,-160.0,0.00017112,2]
[379227519,1755198640611,-232.05637125,0.00017112,2]
[379227521,1755198640621,-528.19044044,0.00017112,2]
[379227523,1755198640630,-160.0,0.00017112,2]
[379227525,1755198640640,-151.0,0.00017154,2]
[379227527,1755198640650,-1821.267734,0.00017221,2]
[379227529,1755198640660,-1821.267734,0.00017221,2]
[379227531,1755198640669,-663.85,0.00017253,2]
[379227533,1755198640679,-460.0,0.00017253,2]
[379227535,1755198640689,-479.41,0.00017253,2]
[379227537,1755198640699,-460.0,0.00017253,2]
[379227539,1755198640708,-460.0,0.00017253,2]
[379227541,1755198640718,-460.0,0.00017253,2]
[379227543,1755198640727,-460.0,0.00017253,2]
[379227545,1755198640736,-460.0,0.00017253,2]
[379227547,1755198640746,-460.0,0.00017253,2]
[379227549,1755198640755,-460.0,0.00017253,2]
[379227551,1755198640764,-460.0,0.00017253,2]
[379227553,1755198640775,-460.0,0.00017253,2]
[379227555,1755198640784,-460.0,0.00017253,2]
[379227557,1755198640794,-151.0,0.00017254,2]
[379227559,1755198640803,-460.0,0.00017291,2]
[379227561,1755198640812,-1111.07,0.00017291,2]
[379227563,1755198640821,-460.0,0.00017291,2]
[379227565,1755198640830,-573.29,0.00017291,2]
[379227567,1755198640839,-460.0,0.00017291,2]
[379227569,1755198640848,-460.0,0.00017291,2]
[379227571,1755198640858,-1821.267734,0.00017328,2]
[379227574,1755198640874,-1821.267734,0.00017328,2]
[379227577,1755198640887,-151.0,0.00017328,2]
[379227579,1755198640896,-1267.323235,0.00017328,2]
[379227581,1755198640905,-1267.323235,0.00017328,2]
[379227583,1755198640914,-450.98056917,0.00017328,2]
[379227585,1755198640926,-460.0,0.00017329,2]
[379227587,1755198640937,-151.0,0.0001733,2]
[379227589,1755198640946,-152.55512621,0.00017482,2]
[379227591,1755198640955,-150.028,0.00017483,2]
[379227593,1755198640967,-150.0,0.00017483,2]
[379227595,1755198640976,-150.101,0.00017483,2]
[379227597,1755198640986,-245.048,0.00017483,2]
[379227599,1755198640995,-1144.041,0.00017483,2]
[379227601,1755198641005,-587.84086539,0.00017483,2]
[379228048,1755198645708,-460.0,0.00016743,2]
[379228050,1755198645718,-460.0,0.00017017,2]
[379228052,1755198645727,-460.0,0.00017291,2]
[379228054,1755198645737,-48.15913461,0.00017483,2]
[379228056,1755198645747,-408.0,0.00017483,2]
[379228058,1755198645756,-418.941,0.00017483,2]
[379228060,1755198645765,-663.85,0.00017527,2]
[379228062,1755198645775,-460.0,0.00017527,2]
[379228064,1755198645785,-479.41,0.00017527,2]
[379228066,1755198645794,-460.0,0.00017527,2]
[379228068,1755198645803,-460.0,0.00017527,2]
[379228070,1755198645813,-460.0,0.00017527,2]
[379228072,1755198645822,-460.0,0.00017527,2]
[379228074,1755198645831,-314.77004836,0.00017527,2]
[379228077,1755198645843,-145.22995164,0.00017527,2]
[379228079,1755198645852,-460.0,0.00017527,2]
[379228081,1755198645861,-460.0,0.00017527,2]
[379228083,1755198645871,-179.16477355,0.00017527,2]
[379228085,1755198645882,-280.83522645,0.00017527,2]
[379228087,1755198645892,-460.0,0.00017527,2]
[379228089,1755198645901,-86.37534778,0.00017527,2]
[379228349,1755198854481,528.19044044,0.0003,120]
[379228350,1755198902470,32441.5,0.00028389,60]
[379228357,1755199455289,385.895497,0.00013699,2]
[379228632,1755199840023,-678.21292831,0.00016706,2]
[379228634,1755199840032,-201.42707781,0.00016743,2]
[379228931,1755199843208,-156.9445826,0.00016743,2]
[379228933,1755199843218,-300.0,0.00017117,2]
[379228936,1755199843228,-215.59581046,0.00017118,2]
[379228940,1755199843238,-461.9529908,0.00017118,2]
[379228943,1755199843247,-843.37884167,0.00017118,2]
[379228945,1755199843260,-232.05637125,0.00017118,2]
[379228948,1755199843269,-160.0,0.00017118,2]
[379228950,1755199843279,-528.19044044,0.00017118,2]
[379228952,1755199843288,-417.15472785,0.00017118,2]
[379228954,1755199843297,-160.0,0.00017118,2]
[379228956,1755199843307,-460.0,0.00017252,2]
[379228958,1755199843318,-460.0,0.00017252,2]
[379228960,1755199843327,-460.0,0.00017252,2]
[379228962,1755199843337,-460.0,0.00017252,2]
[379228964,1755199843346,-460.0,0.00017252,2]
[379228966,1755199843355,-460.0,0.00017252,2]
[379228968,1755199843365,-460.0,0.00017252,2]
[379228970,1755199843374,-972.19,0.00017252,2]
[379228972,1755199843383,-460.0,0.00017252,2]
[379228974,1755199843392,-460.0,0.00017252,2]
[379228976,1755199843401,-460.0,0.00017252,2]
[379228978,1755199843411,-501.63,0.00017252,2]
[379228980,1755199843420,-553.21,0.00017252,2]
[379228982,1755199843430,-460.0,0.00017252,2]
[379228984,1755199843439,-460.0,0.00017252,2]
[379228986,1755199843448,-636.0,0.00017372,2]
[379228988,1755199843457,-408.0,0.00017372,2]
[379228990,1755199843466,-418.941,0.00017372,2]
[379228992,1755199843475,-200.0,0.00017378,2]
[379228994,1755199843484,-200.0,0.00017378,2]
[379228996,1755199843493,-200.0,0.00017378,2]
[379228998,1755199843503,-200.0,0.00017378,2]
[379229000,1755199843512,-200.0,0.00017378,2]
[379229002,1755199843522,-200.0,0.00017378,2]
[379229004,1755199843531,-460.0,0.00017525,2]
[379229006,1755199843540,-460.0,0.00017526,2]
[379229008,1755199843549,-460.0,0.00017526,2]
[379229010,1755199843559,-460.0,0.00017526,2]
[379229012,1755199843568,-460.0,0.00017526,2]
[379229014,1755199843577,-460.0,0.00017526,2]
[379229016,1755199843587,-460.0,0.00017526,2]
[379229018,1755199843601,-460.0,0.00017526,2]
[379229020,1755199843610,-972.19,0.00017526,2]
[379229022,1755199843619,-460.0,0.00017526,2]
[379229024,1755199843628,-460.0,0.00017526,2]
[379229026,1755199843637,-460.0,0.00017526,2]
[379229027,1755199843646,-501.63,0.00017526,2]
[379229029,1755199843655,-553.21,0.00017526,2]
[379229031,1755199843664,-460.0,0.00017526,2]
[379229033,1755199843673,-460.0,0.00017526,2]
[379229035,1755199843682,-325.0,0.00017527,2]
[379229037,1755199843692,-585.80650925,0.00017583,2]
[379229039,1755199843701,-1821.267734,0.00017594,2]
[379229041,1755199843710,-1821.267734,0.00017594,2]
[379229043,1755199843719,-151.0,0.00017594,2]
[379229045,1755199843728,-1267.323235,0.00017594,2]
[379229047,1755199843737,-1267.323235,0.00017594,2]
[379229049,1755199843746,-460.0,0.00017799,2]
[379229051,1755199843755,-460.0,0.000178,2]
[379229053,1755199843764,-460.0,0.000178,2]
[379229055,1755199843773,-460.0,0.000178,2]
[379229057,1755199843783,-460.0,0.000178,2]
[379229059,1755199843792,-460.0,0.000178,2]
[379229061,1755199843801,-460.0,0.000178,2]
[379229063,1755199843812,-460.0,0.000178,2]
[379229065,1755199843822,-972.19,0.000178,2]
[379229067,1755199843831,-460.0,0.000178,2]
[379229069,1755199843840,-460.0,0.000178,2]
[379229071,1755199843849,-460.0,0.000178,2]
[379229073,1755199843858,-501.63,0.000178,2]
[379229075,1755199843867,-553.21,0.000178,2]
[379229077,1755199843876,-460.0,0.000178,2]
[379229096,1755199844040,-460.0,0.000178,2]
[379229098,1755199844049,-460.0,0.00017814,2]
[379229100,1755199844060,-460.0,0.00017814,2]
[379229102,1755199844070,-460.0,0.00017814,2]
[379229103,1755199844079,-1821.267734,0.00017815,2]
[379229104,1755199844088,-1821.267734,0.00017815,2]
[379229105,1755199844102,-1267.323235,0.00017877,2]
[379229106,1755199844111,-1267.323235,0.00017877,2]
[379229107,1755199844122,-673.4512992,0.000179,2]
[379229108,1755199844131,-1821.267734,0.00017962,2]
[379229109,1755199844141,-1821.267734,0.00017962,2]
[379229110,1755199844150,-552.4,0.00017965,3]
[379229111,1755199844159,-500.0,0.00017973,2]